bitfinex/quotes_BTCUSD_20241119
["timestamp","ask_amount","ask_price","bid_price","bid_amount"]
[1732056285297,0.132064,91690.0,91679.0,0.065445]
[1732056285530,0.02019009,91689.0,91679.0,0.065445]
[1732056285747,0.132064,91690.0,91679.0,0.065445]
[1732056285962,0.02019022,91689.0,91679.0,0.065445]
[1732056286177,0.132064,91690.0,91679.0,0.065445]
[1732056286354,0.02019162,91689.0,91679.0,0.065445]
[1732056286568,0.09756247,91690.0,91679.0,0.065445]
[1732056287202,0.15283373,91691.0,91677.0,0.0017048]
[1732056287467,0.15283373,91691.0,91679.0,0.14624259]
[1732056287796,0.0008524,91689.0,91679.0,0.21168759]
[1732056287973,0.0008524,91689.0,91680.0,0.14624259]
[1732056288413,0.0008524,91689.0,91679.0,0.14624259]
[1732056288414,0.1099164,91689.0,91679.0,0.14624259]
[1732056288639,0.0008524,91689.0,91680.0,0.065444]
[1732056289262,0.0008524,91689.0,91678.0,0.0671498]
[1732056289470,0.0008524,91689.0,91686.0,0.06544]
[1732056289685,0.0008524,91689.0,91688.0,0.065439]
[1732056290311,0.0008524,91689.0,91686.0,0.06544]
[1732056290522,0.0008524,91689.0,91688.0,0.065439]
[1732056292294,0.0008524,91689.0,91686.0,0.06544]
[1732056292690,0.0008524,91689.0,91679.0,0.14624259]
[1732056292909,0.0008524,91689.0,91682.0,0.065443]
[1732056293052,0.0808391,91692.0,91683.0,0.065442]
[1732056293432,0.0808391,91692.0,91678.0,0.14794739]
[1732056293611,0.0808391,91692.0,91687.0,0.065439]
[1732056294967,0.109054,91698.0,91689.0,0.065438]
[1732056295173,0.10906255,91697.0,91689.0,0.065438]
[1732056295311,0.10906255,91697.0,91689.0,0.065437]
[1732056295505,0.109056,91696.0,91687.0,0.065439]
[1732056295735,0.10906255,91695.0,91687.0,0.065439]
[1732056296016,0.10906255,91695.0,91689.0,0.065438]
[1732056296460,0.10906255,91695.0,91683.0,0.065442]
[1732056296638,0.10906255,91695.0,91688.0,0.065438]
[1732056296852,0.10906255,91695.0,91688.0,0.130876]
[1732056298150,0.10906255,91695.0,91689.0,0.065438]
[1732056298346,0.10906255,91695.0,91686.0,0.06544]
[1732056298575,0.02018928,91694.0,91689.0,0.065438]
[1732056298786,0.02018928,91693.0,91689.0,0.065438]
[1732056298987,0.02018928,91692.0,91689.0,0.065438]
[1732056299208,0.02018928,91691.0,91689.0,0.065438]
[1732056299413,0.04529058,91699.0,91683.0,0.065442]
[1732056299622,0.05249228,91698.0,91692.0,0.065436]
[1732056299866,0.02018934,91697.0,91693.0,0.065435]
[1732056300092,0.15435313,91699.0,91693.0,0.065435]
[1732056300093,0.02018934,91696.0,91693.0,0.065435]
[1732056300303,0.002,91694.0,91693.0,0.065435]
[1732056300512,0.02218934,91694.0,91693.0,0.065435]
[1732056300719,0.002,91688.0,91687.0,0.06544]
[1732056301564,0.002,91693.0,91692.0,0.065436]
[1732056301755,0.002,91690.0,91689.0,0.065438]
[1732056302446,0.0008523,91694.0,91693.0,0.065435]
[1732056302587,0.02104659,91694.0,91690.0,0.065437]
[1732056302951,0.02019429,91693.0,91692.0,0.065436]
[1732056304367,0.0008523,91694.0,91693.0,0.065435]
[1732056304617,0.0008523,91694.0,91693.0,0.26131281]
[1732056304837,0.0008523,91694.0,91693.0,0.065435]
[1732056306243,0.0008523,91694.0,91693.0,0.31007798]
[1732056306718,0.0008523,91694.0,91693.0,0.065435]
[1732056308042,0.218101,91701.0,91682.0,0.14674864]
[1732056308248,0.02015864,91700.0,91693.0,0.065435]
[1732056308456,0.002,91694.0,91693.0,0.065435]
[1732056308865,0.002,91693.0,91689.0,0.065437]
[1732056309096,0.10906255,91700.0,91690.0,0.065437]
[1732056309313,0.002,91692.0,91691.0,0.065436]
[1732056309989,0.10906255,91700.0,91683.0,0.065442]
[1732056309990,0.18990165,91700.0,91685.0,0.06544]
[1732056310199,0.18990165,91700.0,91686.0,0.06544]
[1732056310200,0.109062,91691.0,91686.0,0.06544]
[1732056310407,0.218118,91694.0,91678.0,0.0017048]
[1732056310659,0.002,91687.0,91682.0,0.065442]
[1732056310865,0.111064,91689.0,91684.0,0.065441]
[1732056311271,0.002,91689.0,91685.0,0.065441]
[1732056311593,0.111064,91689.0,91683.0,0.065442]
[1732056312010,0.109065,91688.0,91683.0,0.065442]
[1732056312630,0.002,91689.0,91683.0,0.065442]
[1732056312871,0.002,91689.0,91678.0,0.0017048]
[1732056313070,0.109064,91689.0,91679.0,0.065445]
[1732056313275,0.218124,91691.0,91679.0,0.065445]
[1732056313482,0.218124,91691.0,91682.0,0.065443]
[1732056313483,0.32718855,91690.0,91682.0,0.065443]
[1732056313686,0.10906255,91690.0,91682.0,0.065443]
[1732056313890,0.109067,91687.0,91685.0,0.0017046]
[1732056314067,0.10906255,91690.0,91685.0,0.0017046]
[1732056314307,0.109067,91686.0,91685.0,0.0017046]
[1732056316775,0.109067,91687.0,91685.0,0.0017046]
[1732056319287,0.10906255,91688.0,91685.0,0.0017046]
[1732056322554,0.53390775,91686.0,91685.0,0.0017046]
[1732056322818,0.56506865,91686.0,91685.0,0.0017046]
[1732056323030,0.47506865,91686.0,91685.0,0.0017046]
[1732056323684,0.57604559,91686.0,91685.0,0.0017046]
[1732056324099,0.002,91666.0,91663.0,0.0017048]
[1732056324333,0.52483475,91664.0,91663.0,0.0017048]
[1732056324548,0.52483475,91664.0,91630.0,0.21226357]
[1732056324549,0.109125,91638.0,91630.0,0.06548]
[1732056324956,0.218244,91641.0,91621.0,0.065486]
[1732056324957,0.10906255,91637.0,91631.0,0.065479]
[1732056325163,0.10906255,91637.0,91628.0,0.065481]
[1732056325372,0.109129,91635.0,91628.0,0.065481]
[1732056325574,0.109129,91635.0,91629.0,0.065481]
[1732056325781,0.109129,91635.0,91630.0,0.06548]
[1732056326208,0.32731655,91637.0,91629.0,0.065481]
[1732056326410,0.10913,91634.0,91629.0,0.065481]
[1732056326831,0.109129,91635.0,91629.0,0.130962]
[1732056327040,0.109129,91635.0,91630.0,0.06548]
[1732056327250,0.109132,91633.0,91628.0,0.065481]
[1732056328596,0.218254,91636.0,91628.0,0.065481]
[1732056328875,0.218254,91636.0,91618.0,0.02146625]
[1732056329096,0.109133,91632.0,91627.0,0.065482]
[1732056329585,0.10913,91634.0,91628.0,0.065482]
[1732056329820,0.10913,91634.0,91629.0,0.065481]
[1732056330178,0.10913,91634.0,91627.0,0.065482]
[1732056330390,0.109131,91633.0,91627.0,0.065482]
[1732056330797,0.10906255,91637.0,91625.0,0.065484]
[1732056331005,0.109128,91635.0,91626.0,0.065483]
[1732056331185,0.109128,91635.0,91629.0,0.065481]
[1732056331635,0.109129,91635.0,91629.0,0.065481]
[1732056331832,0.109129,91635.0,91626.0,0.065483]
[1732056331833,0.10913,91634.0,91627.0,0.065482]
[1732056332233,0.109131,91633.0,91627.0,0.065482]
[1732056332860,0.109133,91632.0,91626.0,0.065483]
[1732056333029,0.109133,91632.0,91621.0,0.065487]
[1732056333295,0.32731955,91635.0,91622.0,0.065486]
[1732056333509,0.109133,91631.0,91625.0,0.065484]
[1732056333910,0.109133,91631.0,91626.0,0.065483]
[1732056334129,0.109133,91631.0,91625.0,0.065484]
[1732056334130,0.10906255,91630.0,91618.0,0.065489]
[1732056334538,0.109143,91623.0,91618.0,0.065489]
[1732056334761,0.10906255,91623.0,91618.0,0.065489]
[1732056334961,0.10906255,91623.0,91620.0,0.065487]
[1732056335179,0.21820555,91623.0,91618.0,0.065489]
[1732056335395,0.21825,91638.0,91625.0,0.065483]
[1732056335569,0.10906255,91634.0,91629.0,0.065481]
[1732056335900,0.21819255,91634.0,91629.0,0.065481]
[1732056336092,0.109131,91633.0,91627.0,0.065482]
[1732056336217,0.002,91629.0,91616.0,0.06549]
[1732056336424,0.002,91629.0,91627.0,0.065482]
[1732056336655,0.218235,91645.0,91635.0,0.065476]
[1732056336849,0.218225,91649.0,91634.0,0.0754]
[1732056336850,0.002,91649.0,91634.0,0.0754]
[1732056337050,0.04380452,91649.0,91648.0,0.065467]
[1732056337269,0.218191,91663.0,91652.0,0.065464]
[1732056337467,0.218191,91663.0,91656.0,0.065462]
[1732056337468,0.109098,91661.0,91656.0,0.065462]
[1732056337681,0.218191,91663.0,91656.0,0.065462]
[1732056337682,0.109098,91660.0,91656.0,0.065462]
[1732056337885,0.002,91657.0,91654.0,0.065463]
[1732056338116,0.10906255,91662.0,91654.0,0.065463]
[1732056338529,0.1,91658.0,91654.0,0.065463]
[1732056339518,0.1,91659.0,91655.0,0.065462]
[1732056339948,0.1,91659.0,91658.0,0.06546]
[1732056340120,0.1,91662.0,91658.0,0.06546]
[1732056340325,0.1,91662.0,91659.0,0.065459]
[1732056340532,0.1,91662.0,91658.0,0.06546]
[1732056341110,0.318197,91660.0,91649.0,0.065466]
[1732056341316,0.109105,91655.0,91651.0,0.065465]
[1732056341461,0.109103,91656.0,91651.0,0.065465]
[1732056341668,0.109103,91656.0,91652.0,0.065464]
[1732056343286,0.109103,91656.0,91650.0,0.065466]
[1732056343683,0.109103,91656.0,91651.0,0.065465]
[1732056343885,0.109102,91658.0,91652.0,0.065464]
[1732056344112,0.318197,91660.0,91651.0,0.065465]
[1732056344113,0.109103,91656.0,91651.0,0.065465]
[1732056348983,0.1099563,91656.0,91651.0,0.065465]
[1732056351739,0.10906255,91655.0,91645.0,0.065469]
[1732056351965,0.109107,91653.0,91645.0,0.065469]
[1732056352192,0.109111,91650.0,91635.0,0.065476]
[1732056352366,0.32727355,91654.0,91635.0,0.065476]
[1732056352572,0.109111,91650.0,91644.0,0.06547]
[1732056352785,0.32727355,91654.0,91644.0,0.06547]
[1732056352971,0.32727355,91654.0,91645.0,0.065469]
[1732056353272,0.10911,91651.0,91645.0,0.065469]
[1732056353455,0.10911,91651.0,91634.0,0.0754]
[1732056353456,0.10906255,91654.0,91646.0,0.065468]
[1732056353704,0.10911,91650.0,91644.0,0.06547]
[1732056353919,0.109111,91650.0,91644.0,0.06547]
[1732056354334,0.218216,91652.0,91644.0,0.06547]
[1732056354335,0.109109,91652.0,91646.0,0.065469]
[1732056354549,0.109111,91650.0,91644.0,0.06547]
[1732056354970,0.109111,91650.0,91644.0,0.13094]
[1732056355188,0.109109,91652.0,91645.0,0.065469]
[1732056355392,0.10911,91651.0,91645.0,0.065469]
[1732056355562,0.10911,91651.0,91644.0,0.06547]
[1732056355818,0.10911,91651.0,91646.0,0.065469]
[1732056356039,0.109111,91650.0,91644.0,0.06547]
[1732056356239,0.10906255,91654.0,91643.0,0.06547]
[1732056356419,0.109109,91651.0,91645.0,0.065469]
[1732056357831,0.218216,91652.0,91644.0,0.06547]
[1732056358038,0.10911,91651.0,91644.0,0.06547]
[1732056358448,0.26309191,91654.0,91648.0,0.065467]
[1732056358651,0.37219891,91654.0,91645.0,0.065469]
[1732056358885,0.545535,91653.0,91644.0,0.06547]
[1732056359085,0.218214,91653.0,91644.0,0.13094]
[1732056359278,0.218214,91653.0,91644.0,0.06547]
[1732056359560,0.109112,91649.0,91644.0,0.06547]
[1732056360079,0.109107,91653.0,91644.0,0.06547]
[1732056360278,0.109111,91650.0,91644.0,0.06547]
[1732056360750,0.15398591,91654.0,91644.0,0.06547]
[1732056360966,0.218214,91653.0,91644.0,0.06547]
[1732056361132,0.218214,91653.0,91644.0,0.0671758]
[1732056361133,0.109112,91649.0,91644.0,0.0671758]
[1732056362518,0.109112,91649.0,91644.0,0.1326458]
[1732056362733,0.109112,91649.0,91644.0,0.0671758]
[1732056362951,0.109109,91651.0,91645.0,0.065469]
[1732056363176,0.10911,91650.0,91645.0,0.065469]
[1732056363469,0.218216,91652.0,91644.0,0.0671758]
[1732056363681,0.218216,91652.0,91645.0,0.065469]
[1732056363682,0.109111,91650.0,91645.0,0.065469]
[1732056364128,0.218216,91652.0,91645.0,0.065469]
[1732056364338,0.109109,91652.0,91645.0,0.065469]
[1732056365940,0.15398591,91654.0,91644.0,0.0017058]
[1732056366319,0.109116,91645.0,91644.0,0.0017058]
[1732056367990,0.01906255,91653.0,91644.0,0.0017058]
[1732056368189,0.109116,91646.0,91644.0,0.0017058]
[1732056368606,0.109114,91647.0,91644.0,0.0017058]
[1732056368809,0.109114,91647.0,91645.0,0.3]
[1732056370422,0.218219,91651.0,91645.0,0.3]
[1732056370641,0.109115,91646.0,91645.0,0.3]
[1732056373851,0.109113,91648.0,91645.0,0.3]
[1732056374428,0.10906255,91652.0,91645.0,0.3]
[1732056374633,0.109115,91647.0,91645.0,0.3]
[1732056379157,0.0008531,91649.0,91645.0,0.3]
[1732056379337,0.2190771,91649.0,91645.0,0.3]
[1732056379570,0.109113,91648.0,91645.0,0.3]
[1732056379794,0.0008531,91649.0,91645.0,0.3]
[1732056380596,0.109114,91648.0,91645.0,0.3]
[1732056382991,0.0008531,91649.0,91645.0,0.3]
[1732056383195,0.109114,91648.0,91645.0,0.3]
[1732056383629,0.218226,91648.0,91645.0,0.3]
[1732056383807,0.109115,91646.0,91645.0,0.3]
[1732056384568,0.21817755,91646.0,91645.0,0.3]
[1732056386016,0.24117755,91646.0,91645.0,0.3]
[1732056387706,0.24117755,91646.0,91645.0,0.301706]
[1732056388128,0.28561458,91646.0,91645.0,0.301706]
[1732056388660,0.29561458,91646.0,91645.0,0.301706]
[1732056389513,0.37651528,91646.0,91645.0,0.301706]
[1732056391510,0.36651528,91646.0,91645.0,0.301706]
[1732056393658,0.28561458,91646.0,91645.0,0.301706]
[1732056396946,0.36651528,91646.0,91645.0,0.301706]
[1732056397651,0.37651528,91646.0,91645.0,0.301706]
[1732056398078,0.26740028,91646.0,91645.0,0.301706]
[1732056399112,0.37651528,91646.0,91645.0,0.301706]
[1732056401560,0.38651528,91646.0,91645.0,0.301706]
[1732056402949,0.51201528,91646.0,91645.0,0.301706]
[1732056403160,0.53210572,91646.0,91645.0,0.301706]
[1732056403811,0.51201528,91646.0,91645.0,0.301706]
[1732056404022,0.43111458,91646.0,91645.0,0.301706]
[1732056404229,0.59291598,91646.0,91645.0,0.301706]
[1732056404660,0.51201528,91646.0,91645.0,0.301706]
[1732056406190,1.16031528,91646.0,91645.0,0.301706]
[1732056407457,1.24121598,91646.0,91645.0,0.301706]
[1732056407687,1.16031528,91646.0,91645.0,0.301706]
[1732056407892,1.24121598,91646.0,91645.0,0.301706]
[1732056408307,1.16031528,91646.0,91645.0,0.301706]
[1732056408770,0.93091458,91646.0,91645.0,0.301706]
[1732056409195,1.01181528,91646.0,91645.0,0.301706]
[1732056410920,1.02481528,91646.0,91645.0,0.301706]
[1732056411332,0.47651528,91646.0,91645.0,0.301706]
[1732056411751,0.46651528,91646.0,91645.0,0.301706]
[1732056411977,0.47651528,91646.0,91645.0,0.301706]
[1732056412813,0.48651528,91646.0,91645.0,0.301706]
[1732056413147,0.04443703,91646.0,91645.0,0.367176]
[1732056413351,0.0008531,91648.0,91647.0,0.065468]
[1732056413572,0.0008531,91648.0,91647.0,0.193968]
[1732056416085,0.0008533,91656.0,91652.0,0.189765]
[1732056416298,0.0008533,91656.0,91655.0,0.065462]
[1732056416504,0.0008533,91656.0,91655.0,0.189762]
[1732056417129,0.0008533,91656.0,91655.0,0.29882455]
[1732056417572,0.0008529,91659.0,91658.0,0.06546]
[1732056417823,0.0008529,91659.0,91658.0,0.22102255]
[1732056418057,0.1,91684.0,91676.0,0.065447]
[1732056418294,0.1,91691.0,91684.0,0.065441]
[1732056418539,0.1,91689.0,91663.0,0.0778]
[1732056418765,0.0909007,91678.0,91663.0,0.0778]
[1732056419013,0.10909,91667.0,91663.0,0.0778]
[1732056419227,0.218159,91676.0,91663.0,0.0778]
[1732056419228,0.109088,91669.0,91663.0,0.0778]
[1732056419438,0.109085,91671.0,91663.0,0.0778]
[1732056419656,0.109089,91668.0,91663.0,0.0778]
[1732056420103,0.109088,91669.0,91663.0,0.143256]
[1732056420362,0.21814,91684.0,91663.0,0.0778]
[1732056420585,0.109081,91675.0,91670.0,0.065451]
[1732056420839,0.13206255,91683.0,91670.0,0.065451]
[1732056421068,0.109081,91675.0,91670.0,0.065451]
[1732056421269,0.13206255,91683.0,91671.0,0.065451]
[1732056421495,0.13206255,91683.0,91655.0,0.0465]
[1732056421496,0.13206255,91683.0,91670.0,0.1243]
[1732056421700,0.13206255,91683.0,91671.0,0.065451]
[1732056421701,0.10908,91676.0,91671.0,0.065451]
[1732056421906,0.218147,91681.0,91673.0,0.065449]
[1732056421907,0.109076,91679.0,91673.0,0.065449]
[1732056422148,0.1,91685.0,91674.0,0.0778]
[1732056422370,0.1,91683.0,91675.0,0.065448]
[1732056422595,0.109074,91681.0,91675.0,0.065448]
[1732056423050,0.109075,91680.0,91675.0,0.065448]
[1732056423252,0.109074,91681.0,91675.0,0.065448]
[1732056423468,0.023,91684.0,91674.0,0.0778]
[1732056423670,0.109077,91678.0,91674.0,0.0778]
[1732056423926,0.109078,91677.0,91674.0,0.0778]
[1732056424359,0.109077,91678.0,91674.0,0.0778]
[1732056424765,0.109075,91680.0,91675.0,0.065448]
[1732056424986,0.0008529,91677.0,91676.0,0.065447]
[1732056425411,0.0008529,91677.0,91675.0,0.065448]
[1732056425616,0.0008529,91677.0,91676.0,0.065447]
[1732056425835,0.0008529,91677.0,91675.0,0.065448]
[1732056426263,0.0008529,91677.0,91676.0,0.065447]
[1732056427585,0.0008529,91677.0,91674.0,0.0778]
[1732056427811,0.10908,91675.0,91674.0,0.0778]
[1732056428037,0.0008529,91677.0,91674.0,0.0778]
[1732056428285,0.10908,91675.0,91674.0,0.0778]
[1732056430271,0.0008529,91677.0,91674.0,0.0778]
[1732056430489,0.109079,91676.0,91674.0,0.0778]
[1732056430705,0.1099319,91677.0,91674.0,0.0778]
[1732056430918,0.0008529,91677.0,91674.0,0.0778]
[1732056432031,0.109079,91676.0,91674.0,0.0778]
[1732056432617,0.0008529,91677.0,91674.0,0.0778]
[1732056432618,0.0008529,91677.0,91674.0,0.143249]
[1732056433374,0.0008529,91677.0,91674.0,0.0778]
[1732056433816,0.0008529,91677.0,91675.0,0.065448]
[1732056434145,0.0008529,91677.0,91676.0,0.065447]
[1732056434591,0.0008529,91677.0,91675.0,0.065448]
[1732056434814,0.0008529,91677.0,91676.0,0.065447]
[1732056435914,0.0008529,91677.0,91674.0,0.0778]
[1732056436223,0.0008529,91677.0,91676.0,0.065447]
[1732056440383,0.0008529,91677.0,91676.0,0.143247]
[1732056441432,0.0008529,91677.0,91676.0,0.25230955]
[1732056441637,0.0008529,91677.0,91676.0,0.30180955]
[1732056442678,0.0008529,91677.0,91676.0,0.31180955]
[1732056442891,0.0008529,91677.0,91676.0,0.31380955]
[1732056443105,0.0108529,91680.0,91679.0,0.01]
[1732056443321,0.0108529,91680.0,91679.0,0.31180755]
[1732056443531,0.0108529,91680.0,91679.0,0.31380755]
[1732056445885,0.0008522,91699.0,91698.0,0.195032]
[1732056446091,0.0008522,91699.0,91698.0,0.30409455]
[1732056454777,0.0008522,91699.0,91698.0,0.30609455]
[1732056455542,0.0008522,91699.0,91698.0,0.30409455]
[1732056456740,0.0008522,91699.0,91698.0,0.30609455]
[1732056456939,0.0008522,91699.0,91698.0,0.31409455]
[1732056457991,0.1943825,91738.0,91709.0,0.01]
[1732056458155,0.12000863,91737.0,91729.0,0.065409]
[1732056458387,0.10901,91735.0,91729.0,0.065409]
[1732056458598,0.109011,91734.0,91729.0,0.065409]
[1732056459030,0.109008,91736.0,91730.0,0.065408]
[1732056459231,0.1,91737.0,91728.0,0.06541]
[1732056459232,0.109011,91734.0,91728.0,0.06541]
[1732056459490,0.109011,91734.0,91729.0,0.065409]
[1732056460042,0.109011,91734.0,91727.0,0.065411]
[1732056460246,0.1098628,91735.0,91729.0,0.065409]
[1732056460479,0.02000922,91734.0,91729.0,0.065409]
[1732056460808,0.0008528,91735.0,91729.0,0.130818]
[1732056461153,0.0008528,91735.0,91730.0,0.065409]
[1732056461358,0.02001348,91734.0,91731.0,0.065408]
[1732056461557,0.0008528,91735.0,91721.0,0.10906255]
[1732056461763,0.02001281,91734.0,91727.0,0.06541]
[1732056461964,0.1098618,91735.0,91729.0,0.065409]
[1732056462169,0.02001284,91734.0,91729.0,0.065409]
[1732056462422,0.1098618,91735.0,91729.0,0.065409]
[1732056462776,0.02002013,91734.0,91730.0,0.065409]
[1732056463123,0.1098618,91735.0,91730.0,0.065409]
[1732056463570,0.12903291,91734.0,91729.0,0.065409]
[1732056463784,0.02002291,91733.0,91729.0,0.065409]
[1732056463998,0.10901,91734.0,91729.0,0.065409]
[1732056464227,0.02002803,91733.0,91729.0,0.065409]
[1732056464448,0.10901,91734.0,91721.0,0.10906255]
[1732056464652,0.10901,91734.0,91728.0,0.06541]
[1732056464908,0.02003191,91733.0,91728.0,0.06541]
[1732056465122,0.10901,91734.0,91728.0,0.06541]
[1732056465338,0.02003358,91733.0,91728.0,0.06541]
[1732056465563,0.109012,91733.0,91728.0,0.06541]
[1732056465778,0.109013,91732.0,91728.0,0.06541]
[1732056466032,0.0008528,91735.0,91730.0,0.065409]
[1732056466033,0.1098628,91735.0,91730.0,0.065409]
[1732056466254,0.1098628,91735.0,91721.0,0.10906255]
[1732056466255,0.0008528,91735.0,91721.0,0.10906255]
[1732056466701,0.0008528,91735.0,91731.0,0.065408]
[1732056466917,0.0008528,91735.0,91730.0,0.065408]
[1732056467121,0.0008528,91735.0,91727.0,0.065411]
[1732056467362,0.0008528,91735.0,91729.0,0.065409]
[1732056467986,0.1098618,91735.0,91721.0,0.10906255]
[1732056468224,0.0008528,91735.0,91727.0,0.06541]
[1732056468444,0.109014,91732.0,91726.0,0.065411]
[1732056468653,0.0008528,91735.0,91732.0,0.065407]
[1732056468864,0.0008528,91735.0,91720.0,0.10906255]
[1732056468865,0.0008528,91735.0,91731.0,0.0785]
[1732056469300,0.0008528,91735.0,91733.0,0.065407]
[1732056470178,0.0008528,91735.0,91733.0,0.065406]
[1732056470623,0.0008528,91735.0,91734.0,0.065406]
[1732056473015,0.2188431,91748.0,91734.0,0.065406]
[1732056473016,0.17304521,91744.0,91734.0,0.065406]
[1732056473227,0.109001,91742.0,91735.0,0.065405]
[1732056473448,0.0200903,91741.0,91735.0,0.065405]
[1732056473692,0.17304521,91744.0,91732.0,0.065407]
[1732056473693,0.0200903,91740.0,91736.0,0.065404]
[1732056473916,0.15372293,91744.0,91737.0,0.065404]
[1732056474139,0.02009267,91743.0,91737.0,0.065404]
[1732056474355,0.02009267,91742.0,91737.0,0.065404]
[1732056474585,0.02009267,91741.0,91737.0,0.065404]
[1732056474808,0.04472393,91744.0,91740.0,0.065402]
[1732056475067,0.0008531,91748.0,91741.0,0.065401]
[1732056475276,0.1098481,91748.0,91741.0,0.065401]
[1732056475489,0.02009772,91747.0,91742.0,0.0654]
[1732056475698,0.0008531,91748.0,91743.0,0.065399]
[1732056476366,0.04501765,91748.0,91743.0,0.065399]
[1732056477032,0.04501765,91748.0,91744.0,0.065398]
[1732056477540,0.04501765,91748.0,91745.0,0.065398]
[1732056477750,0.04501765,91748.0,91743.0,0.065399]
[1732056477962,0.04501765,91748.0,91745.0,0.065398]
[1732056478171,0.0008531,91748.0,91743.0,0.065399]
[1732056478400,0.0008531,91748.0,91744.0,0.065399]
[1732056479051,0.0008531,91748.0,91747.0,0.065397]
[1732056479270,0.0008531,91748.0,91747.0,0.17445955]
[1732056479693,0.0008531,91748.0,91747.0,0.22085955]
[1732056479928,0.0004,91759.0,91758.0,0.111789]
[1732056480158,0.0004,91759.0,91758.0,0.22085155]
[1732056480817,0.0004,91759.0,91758.0,0.30405155]
[1732056482841,0.0012522,91759.0,91758.0,0.30405155]
[1732056484170,0.0012522,91759.0,91758.0,0.30605155]
[1732056485249,0.0012522,91759.0,91758.0,0.31605155]
[1732056485461,0.0012522,91759.0,91758.0,0.31405155]
[1732056485687,0.0012522,91759.0,91758.0,0.31605155]
[1732056485906,0.0012522,91759.0,91758.0,0.31405155]
[1732056486524,0.0012522,91759.0,91758.0,0.35904254]
[1732056486940,0.0012522,91759.0,91758.0,0.35104254]
[1732056488054,0.0223742,91788.0,91764.0,0.002]
[1732056488294,0.26234097,91792.0,91765.0,0.10906255]
[1732056488498,0.26234097,91792.0,91781.0,0.065372]
[1732056488499,0.217888,91790.0,91781.0,0.065372]
[1732056488730,0.217891,91789.0,91776.0,0.065376]
[1732056488977,0.08368131,91791.0,91766.0,0.065383]
[1732056488978,0.0764,91787.0,91766.0,0.065383]
[1732056489185,0.0764,91787.0,91758.0,0.04499099]
[1732056489394,0.0764,91787.0,91775.0,0.065376]
[1732056489828,0.0764,91787.0,91768.0,0.065381]
[1732056489829,0.023,91786.0,91768.0,0.065381]
[1732056490072,0.0994,91783.0,91762.0,0.065386]
[1732056490352,0.12745155,91790.0,91747.0,0.01]
[1732056490353,0.0454,91765.0,91758.0,0.065388]
[1732056490575,0.0454,91765.0,91742.0,0.04336662]
[1732056490801,0.10899,91751.0,91744.0,0.065399]
[1732056491012,0.023,91761.0,91747.0,0.065396]
[1732056491220,0.023,91761.0,91748.0,0.065396]
[1732056491221,0.00717552,91751.0,91748.0,0.065396]
[1732056491476,0.108988,91753.0,91747.0,0.065396]
[1732056491691,0.217964,91759.0,91738.0,0.02144025]
[1732056491692,0.00717552,91751.0,91748.0,0.065396]
[1732056491900,0.108988,91753.0,91748.0,0.065396]
[1732056492115,0.00717552,91751.0,91748.0,0.065396]
[1732056492302,0.108988,91753.0,91748.0,0.065396]
[1732056492537,0.00717552,91751.0,91750.0,0.115395]
[1732056492756,0.108986,91755.0,91750.0,0.05]
[1732056492980,0.00717552,91751.0,91750.0,0.05]
[1732056493187,0.108986,91755.0,91750.0,0.05]
[1732056493402,0.00717552,91751.0,91750.0,0.05]
[1732056493612,0.11617544,91754.0,91750.0,0.05]
[1732056493829,0.00717552,91751.0,91750.0,0.05]
[1732056494013,0.108987,91754.0,91750.0,0.05]
[1732056494343,0.00717552,91751.0,91750.0,0.05]
[1732056494562,0.00717552,91751.0,91750.0,0.051707]
[1732056494563,0.18539,91751.0,91750.0,0.051707]
[1732056494784,0.19256552,91751.0,91750.0,0.051707]
[1732056494994,0.23796552,91751.0,91750.0,0.051707]
[1732056495816,0.26096552,91751.0,91750.0,0.051707]
[1732056498433,0.13916552,91751.0,91750.0,0.051707]
[1732056503015,0.03017552,91751.0,91750.0,0.051707]
[1732056503655,0.13916552,91751.0,91750.0,0.051707]
[1732056504065,0.00717552,91751.0,91750.0,0.051707]
[1732056504513,0.04449848,91759.0,91750.0,0.117102]
[1732056504720,0.15347948,91759.0,91753.0,0.065392]
[1732056504933,0.00720567,91758.0,91750.0,0.051707]
[1732056505138,0.04449848,91759.0,91750.0,0.117101]
[1732056505351,0.108982,91758.0,91753.0,0.065392]
[1732056505633,0.04449848,91759.0,91753.0,0.065392]
[1732056505634,0.15347948,91759.0,91753.0,0.065392]
[1732056505836,0.1098345,91759.0,91753.0,0.065392]
[1732056506882,0.0008535,91759.0,91758.0,0.075389]
[1732056507109,0.0008535,91759.0,91758.0,0.18445155]
[1732056507302,0.0008535,91759.0,91758.0,0.29445155]
[1732056507602,0.0008535,91759.0,91758.0,0.42195155]
[1732056508018,0.0008535,91759.0,91758.0,0.42395155]
[1732056508245,0.0008531,91788.0,91787.0,0.065368]
[1732056509946,0.0008531,91788.0,91784.0,0.06537]
[1732056510154,0.0008531,91788.0,91785.0,0.065369]
[1732056510367,0.0008531,91788.0,91787.0,0.065368]
[1732056511424,0.00805105,91788.0,91787.0,0.065368]
[1732056511636,0.0008531,91788.0,91785.0,0.065369]
[1732056511839,0.00805105,91788.0,91785.0,0.065369]
[1732056512044,0.108948,91787.0,91779.0,0.065373]
[1732056512250,0.00719365,91787.0,91776.0,0.065375]
[1732056512681,0.10895,91786.0,91779.0,0.065374]
[1732056512895,0.10895,91785.0,91777.0,0.065375]
[1732056513097,0.11613504,91785.0,91778.0,0.065375]
[1732056513303,0.00718504,91785.0,91779.0,0.065374]
[1732056513744,0.00718504,91785.0,91777.0,0.13075]
[1732056513968,0.00718504,91785.0,91774.0,0.065377]
[1732056514227,0.00718504,91785.0,91756.0,0.1]
[1732056514228,0.108969,91769.0,91751.0,0.065394]
[1732056514437,0.023,91776.0,91753.0,0.065392]
[1732056514642,0.10897,91769.0,91761.0,0.065386]
[1732056514828,0.007142,91775.0,91758.0,0.065388]
[1732056515053,0.0072404,91768.0,91762.0,0.065386]
[1732056515253,0.023,91767.0,91756.0,0.06539]